[Event "*** Titled Tuesday Blitz"]
[Site "Chess.com"]
[Date "2020.10.20"]
[Round "2"]
[White "K_A_S_T_O_R"]
[Black "PotapovaM"]
[Result "1-0"]
[WhiteElo "2833"]
[BlackElo "2523"]
[TimeControl "180+1"]
[EndTime "10:19:04 PDT"]
[Termination "K_A_S_T_O_R won by resignation"]

1. e4 {[%clk 0:03:00.9]} 1... c5 {[%clk 0:03:00]} 2. Nf3 {[%clk 0:03:00.8]} 2...
d6 {[%clk 0:03:00.5]} 3. d4 {[%clk 0:03:00.7]} 3... cxd4 {[%clk 0:03:01.4]} 4.
Nxd4 {[%clk 0:03:00.7]} 4... Nf6 {[%clk 0:02:59.7]} 5. Nc3 {[%clk 0:03:01.1]}
5... a6 {[%clk 0:02:59.9]} 6. Bg5 {[%clk 0:03:00.3]} 6... e6 {[%clk 0:03:00.1]}
7. f4 {[%clk 0:02:59.6]} 7... h6 {[%clk 0:03:00.3]} 8. Bh4 {[%clk 0:02:59.7]}
8... Qb6 {[%clk 0:03:00.5]} 9. Bxf6 {[%clk 0:03:00]} 9... gxf6 {[%clk
0:03:00.1]} 10. Qd2 {[%clk 0:03:00.4]} 10... h5 {[%clk 0:02:59.9]} 11. O-O-O
{[%clk 0:02:58.6]} 11... Nc6 {[%clk 0:02:55.4]} 12. Nb3 {[%clk 0:02:58.5]} 12...
h4 {[%clk 0:02:37.8]} 13. Kb1 {[%clk 0:02:57.7]} 13... Bd7 {[%clk 0:02:37.1]}
14. Be2 {[%clk 0:02:57.7]} 14... O-O-O {[%clk 0:02:36.4]} 15. Rhf1 {[%clk
0:02:57.6]} 15... Kb8 {[%clk 0:02:33.4]} 16. Qe1 {[%clk 0:02:56.2]} 16... Be7
{[%clk 0:02:29.4]} 17. Rf3 {[%clk 0:02:55.8]} 17... Rhg8 {[%clk 0:02:02.6]} 18.
Bf1 {[%clk 0:02:54.3]} 18... a5 {[%clk 0:01:32.6]} 19. Qxh4 {[%clk 0:02:33.7]}
19... f5 {[%clk 0:01:21.5]} 20. Qe1 {[%clk 0:02:33]} 20... fxe4 {[%clk
0:01:20.1]} 21. Qxe4 {[%clk 0:02:23.4]} 21... Nb4 {[%clk 0:01:17]} 22. Qd4
{[%clk 0:02:17.4]} 22... Qc7 {[%clk 0:01:06.1]} 23. a3 {[%clk 0:02:16.2]} 23...
Nc6 {[%clk 0:01:02.3]} 24. Qf2 {[%clk 0:02:11.4]} 24... Na7 {[%clk 0:00:51.5]}
25. Rd4 {[%clk 0:01:58.7]} 25... d5 {[%clk 0:00:50.5]} 26. Rd1 {[%clk 0:01:51]}
26... Bf6 {[%clk 0:00:50.7]} 27. g3 {[%clk 0:01:45.6]} 27... Rc8 {[%clk
0:00:50.6]} 28. Qd2 {[%clk 0:01:38]} 28... a4 {[%clk 0:00:47.5]} 29. Nc1 {[%clk
0:01:32.4]} 29... Qb6 {[%clk 0:00:42.2]} 30. N1a2 {[%clk 0:01:26.1]} 30... Rc5
{[%clk 0:00:36.5]} 31. Nb4 {[%clk 0:01:24]} 31... Rgc8 {[%clk 0:00:34.9]} 32.
Nca2 {[%clk 0:01:22]} 32... Nc6 {[%clk 0:00:33.1]} 33. c3 {[%clk 0:01:20.3]}
33... Na5 {[%clk 0:00:32.7]} 34. Nc1 {[%clk 0:01:18.3]} 34... Bb5 {[%clk
0:00:30]} 35. Ncd3 {[%clk 0:01:13.3]} 35... R5c7 {[%clk 0:00:27.4]} 36. Qf2
{[%clk 0:01:11]} 36... Qd6 {[%clk 0:00:22.9]} 37. Ne5 {[%clk 0:01:07.1]} 37...
Nc4 {[%clk 0:00:20.4]} 38. Bxc4 {[%clk 0:01:06]} 38... Bxc4 {[%clk 0:00:21.3]}
39. Nxc4 {[%clk 0:01:05.8]} 39... Rxc4 {[%clk 0:00:22.2]} 40. Rfd3 {[%clk
0:01:05.7]} 40... Qc7 {[%clk 0:00:21.4]} 41. Qd2 {[%clk 0:01:02]} 41... Be7
{[%clk 0:00:20.3]} 42. Nc2 {[%clk 0:01:00.4]} 42... Qb6 {[%clk 0:00:19.1]} 43.
Ka1 {[%clk 0:01:00.4]} 43... Qb3 {[%clk 0:00:17.8]} 44. Nd4 {[%clk 0:01:00.1]}
44... Qb6 {[%clk 0:00:17.3]} 45. h4 {[%clk 0:00:56.3]} 45... Bc5 {[%clk
0:00:17.1]} 46. h5 {[%clk 0:00:56.1]} 46... Rh8 {[%clk 0:00:16.9]} 47. g4 {[%clk
0:00:55.8]} 47... Qd6 {[%clk 0:00:15]} 48. Rf1 {[%clk 0:00:53.1]} 48... Rc8
{[%clk 0:00:08.9]} 49. Ka2 {[%clk 0:00:52.3]} 49... Qb6 {[%clk 0:00:07.6]} 50.
Qd1 {[%clk 0:00:48.2]} 50... Qa5 {[%clk 0:00:06.6]} 51. g5 {[%clk 0:00:47]}
51... Bf8 {[%clk 0:00:06.4]} 52. h6 {[%clk 0:00:46.6]} 52... Qa6 {[%clk
0:00:05.9]} 53. Rh1 {[%clk 0:00:45.8]} 53... Qb6 {[%clk 0:00:05.1]} 54. Nf3
{[%clk 0:00:43.7]} 54... R4c5 {[%clk 0:00:05.3]} 55. Ne5 {[%clk 0:00:43.3]}
55... Ka8 {[%clk 0:00:04.8]} 56. Qxa4+ {[%clk 0:00:42.2]} 56... Ra5 {[%clk
0:00:04.7]} 57. Qb3 {[%clk 0:00:34.9]} 57... Qa6 {[%clk 0:00:04.5]} 58. Rd4
{[%clk 0:00:31.7]} 58... Rb5 {[%clk 0:00:03.4]} 59. Ra4 {[%clk 0:00:30.7]} 59...
Ra5 {[%clk 0:00:03.8]} 60. Rxa5 {[%clk 0:00:30.8]} 60... Qxa5 {[%clk 0:00:04.7]}
61. Nxf7 {[%clk 0:00:28.8]} 61... Be7 {[%clk 0:00:04.2]} 62. h7 {[%clk
0:00:28.8]} 1-0

[Event "*** Titled Tuesday Blitz"]
[Site "Chess.com"]
[Date "2020.10.20"]
[Round "2"]
[White "KyrgyzFighter"]
[Black "denispopov"]
[Result "1-0"]
[WhiteElo "2362"]
[BlackElo "1957"]
[TimeControl "180+1"]
[EndTime "10:19:04 PDT"]
[Termination "KyrgyzFighter won on time"]

1. c4 {[%clk 0:03:00.9]} 1... Nf6 {[%clk 0:02:59.1]} 2. Nc3 {[%clk 0:03:00.5]}
2... g6 {[%clk 0:02:58.8]} 3. e4 {[%clk 0:03:00.6]} 3... d6 {[%clk 0:02:57.9]}
4. d4 {[%clk 0:03:00.6]} 4... Bg7 {[%clk 0:02:58.4]} 5. f3 {[%clk 0:03:00.7]}
5... O-O {[%clk 0:02:58.4]} 6. Be3 {[%clk 0:03:01.1]} 6... Nbd7 {[%clk
0:02:57.2]} 7. Qd2 {[%clk 0:02:59.6]} 7... e5 {[%clk 0:02:55.9]} 8. d5 {[%clk
0:02:59.6]} 8... Nh5 {[%clk 0:02:52.8]} 9. Bd3 {[%clk 0:02:58.5]} 9... f5 {[%clk
0:02:51]} 10. exf5 {[%clk 0:02:58.3]} 10... gxf5 {[%clk 0:02:51.9]} 11. O-O-O
{[%clk 0:02:58.1]} 11... b6 {[%clk 0:02:35.6]} 12. Nge2 {[%clk 0:02:55.8]} 12...
Nc5 {[%clk 0:02:35.2]} 13. Bc2 {[%clk 0:02:55.7]} 13... a6 {[%clk 0:02:29.4]}
14. h4 {[%clk 0:02:50.9]} 14... f4 {[%clk 0:01:58.7]} 15. Bxc5 {[%clk
0:02:41.2]} 15... bxc5 {[%clk 0:01:56.1]} 16. Ne4 {[%clk 0:02:31.8]} 16... Bf5
{[%clk 0:01:43.6]} 17. Rdg1 {[%clk 0:02:28.2]} 17... Rb8 {[%clk 0:01:11.2]} 18.
g4 {[%clk 0:02:11.6]} 18... fxg3 {[%clk 0:01:09.4]} 19. N2xg3 {[%clk 0:02:09.8]}
19... Nxg3 {[%clk 0:01:09]} 20. Rxg3 {[%clk 0:02:07.9]} 20... Kh8 {[%clk
0:01:04.8]} 21. Rhg1 {[%clk 0:02:02.9]} 21... Rg8 {[%clk 0:00:58.9]} 22. Ng5
{[%clk 0:01:58.8]} 22... Qf6 {[%clk 0:00:45.8]} 23. Bxf5 {[%clk 0:00:46.2]}
23... Qxf5 {[%clk 0:00:46.7]} 24. Qc2 {[%clk 0:00:43.3]} 24... Rbf8 {[%clk
0:00:31.6]} 25. b3 {[%clk 0:00:27]} 25... h6 {[%clk 0:00:28.4]} 26. Ne6 {[%clk
0:00:25.7]} 26... Qxc2+ {[%clk 0:00:26.9]} 27. Kxc2 {[%clk 0:00:26.5]} 27... Rf7
{[%clk 0:00:27.8]} 28. Rg6 {[%clk 0:00:25.7]} 28... Kh7 {[%clk 0:00:19.8]} 29.
h5 {[%clk 0:00:22]} 29... Re7 {[%clk 0:00:14.4]} 30. Kd3 {[%clk 0:00:21.5]}
30... Rf7 {[%clk 0:00:09.5]} 31. Ke4 {[%clk 0:00:21.8]} 31... Re7 {[%clk
0:00:09.5]} 32. R1g4 {[%clk 0:00:17.8]} 32... Rf7 {[%clk 0:00:08.9]} 33. Rg3
{[%clk 0:00:17.3]} 33... Re7 {[%clk 0:00:07.5]} 34. R3g4 {[%clk 0:00:11.8]}
34... Rf7 {[%clk 0:00:07.3]} 35. f4 {[%clk 0:00:09.7]} 35... exf4 {[%clk
0:00:07.3]} 36. Rxf4 {[%clk 0:00:09.9]} 36... Rxf4+ {[%clk 0:00:07.2]} 37. Nxf4
{[%clk 0:00:10.8]} 37... Be5 {[%clk 0:00:03.8]} 38. Rxg8 {[%clk 0:00:10.8]}
38... Kxg8 {[%clk 0:00:04.7]} 39. Ne6 {[%clk 0:00:11.5]} 39... Kf7 {[%clk
0:00:03.2]} 40. Nxc7 {[%clk 0:00:11.8]} 40... a5 {[%clk 0:00:03.8]} 41. a4
{[%clk 0:00:11.4]} 41... Bc3 {[%clk 0:00:03.8]} 42. Nb5 {[%clk 0:00:11.2]} 42...
Be5 {[%clk 0:00:02.6]} 43. Na7 {[%clk 0:00:11.6]} 43... Bc3 {[%clk 0:00:01.6]}
44. Nc6 {[%clk 0:00:12]} 44... Bb4 {[%clk 0:00:01.2]} 45. Kf5 {[%clk 0:00:11.7]}
45... Bc3 {[%clk 0:00:01.5]} 46. Nd8+ {[%clk 0:00:11.5]} 46... Ke7 {[%clk
0:00:01.8]} 47. Ne6 {[%clk 0:00:12]} 47... Kf7 {[%clk 0:00:02.1]} 48. Nf4 {[%clk
0:00:10.2]} 48... Be5 {[%clk 0:00:01.9]} 49. Nd3 {[%clk 0:00:10]} 49... Bc3
{[%clk 0:00:02]} 50. Nf2 {[%clk 0:00:10.1]} 50... Ke7 {[%clk 0:00:02.1]} 51. Ng4
{[%clk 0:00:09.5]} 51... Kf7 {[%clk 0:00:02.2]} 52. Nxh6+ {[%clk 0:00:09.5]}
52... Kg7 {[%clk 0:00:02.9]} 53. Ng4 {[%clk 0:00:10.2]} 53... Bd2 {[%clk
0:00:03.4]} 54. Ke6 {[%clk 0:00:09.9]} 54... Bf4 {[%clk 0:00:03]} 55. Nf6 {[%clk
0:00:09.8]} 55... Be5 {[%clk 0:00:02.5]} 56. Ne8+ {[%clk 0:00:10.1]} 1-0

[Event "*** Titled Tuesday Blitz"]
[Site "Chess.com"]
[Date "2020.10.20"]
[Round "2"]
[White "Flawless_Fighter"]
[Black "Smirnov_Pavel"]
[Result "0-1"]
[WhiteElo "2563"]
[BlackElo "2871"]
[TimeControl "180+1"]
[EndTime "10:19:05 PDT"]
[Termination "Smirnov_Pavel won by checkmate"]

1. d4 {[%clk 0:03:00.9]} 1... Nf6 {[%clk 0:02:58.6]} 2. c4 {[%clk 0:03:00.7]}
2... e6 {[%clk 0:02:59]} 3. g3 {[%clk 0:03:00.4]} 3... d5 {[%clk 0:02:58.5]} 4.
Bg2 {[%clk 0:03:00.8]} 4... Be7 {[%clk 0:02:59.1]} 5. Nf3 {[%clk 0:03:01.1]}
5... O-O {[%clk 0:02:59.6]} 6. O-O {[%clk 0:03:00.4]} 6... c6 {[%clk 0:03:00]}
7. Qc2 {[%clk 0:02:55.5]} 7... b6 {[%clk 0:02:59.5]} 8. Rd1 {[%clk 0:02:53.5]}
8... Nbd7 {[%clk 0:02:53]} 9. Nc3 {[%clk 0:02:51]} 9... Bb7 {[%clk 0:02:26.7]}
10. b3 {[%clk 0:02:48.2]} 10... Ba6 {[%clk 0:02:25.1]} 11. Nd2 {[%clk
0:02:45.2]} 11... b5 {[%clk 0:02:24]} 12. a4 {[%clk 0:02:33.8]} 12... bxc4
{[%clk 0:02:17.5]} 13. bxc4 {[%clk 0:02:33.6]} 13... Rb8 {[%clk 0:02:16.3]} 14.
e3 {[%clk 0:02:26]} 14... Nb6 {[%clk 0:02:03.8]} 15. c5 {[%clk 0:02:15.5]} 15...
Nc4 {[%clk 0:02:03.2]} 16. Nxc4 {[%clk 0:02:15.8]} 16... Bxc4 {[%clk 0:02:02.4]}
17. Rb1 {[%clk 0:02:12]} 17... Qc7 {[%clk 0:01:59.5]} 18. Bd2 {[%clk 0:02:12]}
18... Nd7 {[%clk 0:01:54.2]} 19. e4 {[%clk 0:02:07.7]} 19... Rxb1 {[%clk
0:01:48.1]} 20. Rxb1 {[%clk 0:02:06.3]} 20... Rb8 {[%clk 0:01:47.2]} 21. Bf4
{[%clk 0:02:03.3]} 21... Rxb1+ {[%clk 0:01:28.2]} 22. Qxb1 {[%clk 0:02:03.3]}
22... Qa5 {[%clk 0:01:22.8]} 23. Bd2 {[%clk 0:02:01.5]} 23... Qa6 {[%clk
0:01:19.4]} 24. Qb4 {[%clk 0:01:51.3]} 24... h6 {[%clk 0:01:11]} 25. h4 {[%clk
0:01:51]} 25... Bf6 {[%clk 0:01:08.9]} 26. e5 {[%clk 0:01:48.3]} 26... Bd8
{[%clk 0:01:08.7]} 27. Nd1 {[%clk 0:01:45.2]} 27... Be2 {[%clk 0:01:05.1]} 28.
Nb2 {[%clk 0:01:40.7]} 28... Bc7 {[%clk 0:00:59.3]} 29. Kh2 {[%clk 0:01:33.9]}
29... Bf1 {[%clk 0:00:53.4]} 30. Kg1 {[%clk 0:01:30.4]} 30... Bxg2 {[%clk
0:00:52.3]} 31. Kxg2 {[%clk 0:01:31.3]} 31... f5 {[%clk 0:00:35.5]} 32. exf6
{[%clk 0:01:19.1]} 32... Nxf6 {[%clk 0:00:34.6]} 33. Qb3 {[%clk 0:01:18.7]}
33... Ne4 {[%clk 0:00:31.1]} 34. Be3 {[%clk 0:01:18.9]} 34... Qe2 {[%clk
0:00:27]} 35. Qb7 {[%clk 0:00:52.3]} 35... Bxg3 {[%clk 0:00:20.2]} 36. Qc8+
{[%clk 0:00:51.4]} 36... Kh7 {[%clk 0:00:19.2]} 37. Qxe6 {[%clk 0:00:50.9]}
37... Bxh4 {[%clk 0:00:16]} 38. Qf5+ {[%clk 0:00:44.3]} 38... Kg8 {[%clk
0:00:15.9]} 39. Qe6+ {[%clk 0:00:43.9]} 39... Kf8 {[%clk 0:00:15.3]} 40. Qc8+
{[%clk 0:00:44.3]} 40... Kf7 {[%clk 0:00:15.2]} 41. Qd7+ {[%clk 0:00:42.4]}
41... Kg6 {[%clk 0:00:15]} 42. Qe6+ {[%clk 0:00:41.5]} 42... Bf6 {[%clk
0:00:12.1]} 43. Qxc6 {[%clk 0:00:36.3]} 43... Qxb2 {[%clk 0:00:11.3]} 44. Qxd5
{[%clk 0:00:35.7]} 44... Qc2 {[%clk 0:00:11.1]} 45. Qe6 {[%clk 0:00:31.6]} 45...
Ng5 {[%clk 0:00:10.3]} 46. Qe8+ {[%clk 0:00:30.8]} 46... Kh7 {[%clk 0:00:09.9]}
47. Bxg5 {[%clk 0:00:30.1]} 47... Bxg5 {[%clk 0:00:09.3]} 48. c6 {[%clk
0:00:28.7]} 48... Qc4 {[%clk 0:00:09]} 49. Qd7 {[%clk 0:00:27]} 49... Qd3 {[%clk
0:00:08.9]} 50. Qd5 {[%clk 0:00:26.1]} 50... Qg6 {[%clk 0:00:07.6]} 51. c7
{[%clk 0:00:24.1]} 51... Bf4+ {[%clk 0:00:07.3]} 52. Kf3 {[%clk 0:00:22.8]}
52... Bxc7 {[%clk 0:00:08.2]} 53. Qd7 {[%clk 0:00:22.2]} 53... Bb6 {[%clk
0:00:08.1]} 54. d5 {[%clk 0:00:21.9]} 54... Qf6+ {[%clk 0:00:08.1]} 55. Ke4
{[%clk 0:00:22.2]} 55... Qxf2 {[%clk 0:00:07.2]} 56. d6 {[%clk 0:00:20.7]} 56...
Qd4+ {[%clk 0:00:07.4]} 57. Kf5 {[%clk 0:00:20.8]} 57... Qd5+ {[%clk 0:00:07]}
58. Kf4 {[%clk 0:00:20.7]} 58... Bc5 {[%clk 0:00:06.9]} 59. Qe8 {[%clk
0:00:19.1]} 59... Bxd6+ {[%clk 0:00:06.5]} 60. Kg4 {[%clk 0:00:18.2]} 60... h5+
{[%clk 0:00:05.4]} 61. Kh3 {[%clk 0:00:18.4]} 61... Qf3+ {[%clk 0:00:05]} 62.
Kh4 {[%clk 0:00:18.4]} 62... Qg4# {[%clk 0:00:05.5]} 0-1

[Event "*** Titled Tuesday Blitz"]
[Site "Chess.com"]
[Date "2020.10.20"]
[Round "2"]
[White "Savagelittlemole"]
[Black "Duhless"]
[Result "0-1"]
[WhiteElo "2610"]
[BlackElo "3007"]
[TimeControl "180+1"]
[EndTime "10:19:06 PDT"]
[Termination "Duhless won by resignation"]

1. e4 {[%clk 0:03:00.9]} 1... Nc6 {[%clk 0:02:59.9]} 2. Nf3 {[%clk 0:02:58.3]}
2... d5 {[%clk 0:02:59.8]} 3. exd5 {[%clk 0:02:54.9]} 3... Qxd5 {[%clk
0:03:00.7]} 4. Nc3 {[%clk 0:02:53.9]} 4... Qh5 {[%clk 0:02:59.6]} 5. Be2 {[%clk
0:02:51.5]} 5... Bg4 {[%clk 0:02:59]} 6. d3 {[%clk 0:02:44.3]} 6... O-O-O {[%clk
0:02:58.6]} 7. O-O {[%clk 0:02:43.2]} 7... e5 {[%clk 0:02:46.7]} 8. h3 {[%clk
0:02:43]} 8... Bxf3 {[%clk 0:02:46.7]} 9. Bxf3 {[%clk 0:02:43.9]} 9... Qg6
{[%clk 0:02:47.3]} 10. Be3 {[%clk 0:02:35.7]} 10... f5 {[%clk 0:02:43.6]} 11.
Bxc6 {[%clk 0:02:21.7]} 11... Qxc6 {[%clk 0:02:42.8]} 12. Bg5 {[%clk 0:02:20.5]}
12... Be7 {[%clk 0:02:41]} 13. Bxe7 {[%clk 0:02:19.7]} 13... Nxe7 {[%clk
0:02:41.9]} 14. Qe2 {[%clk 0:02:17.3]} 14... Ng6 {[%clk 0:02:41.4]} 15. a4
{[%clk 0:02:14.3]} 15... Nf4 {[%clk 0:02:39.4]} 16. Qf3 {[%clk 0:02:11.1]} 16...
Qxf3 {[%clk 0:02:39.4]} 17. gxf3 {[%clk 0:02:12]} 17... Rd6 {[%clk 0:02:38.3]}
18. Rfe1 {[%clk 0:02:03]} 18... Rg6+ {[%clk 0:02:36.2]} 19. Kh1 {[%clk
0:01:54.2]} 19... Re8 {[%clk 0:02:35.2]} 20. Rg1 {[%clk 0:01:51.4]} 20... Nxh3
{[%clk 0:02:31]} 21. Rxg6 {[%clk 0:01:49.7]} 21... hxg6 {[%clk 0:02:31.9]} 22.
Kg2 {[%clk 0:01:50]} 22... Nf4+ {[%clk 0:02:32.1]} 23. Kg1 {[%clk 0:01:43.6]}
23... Kd7 {[%clk 0:02:31.5]} 24. a5 {[%clk 0:01:39.9]} 24... c6 {[%clk
0:02:26.7]} 25. a6 {[%clk 0:01:37.2]} 25... b5 {[%clk 0:02:26.4]} 26. Re1 {[%clk
0:01:28.7]} 26... g5 {[%clk 0:02:16.8]} 27. Ne2 {[%clk 0:01:25.4]} 27... Nxe2+
{[%clk 0:02:11.3]} 28. Rxe2 {[%clk 0:01:26.3]} 28... c5 {[%clk 0:02:11.8]} 29.
c3 {[%clk 0:01:19.4]} 29... Re6 {[%clk 0:02:09.6]} 30. Kg2 {[%clk 0:01:16.8]}
30... c4 {[%clk 0:02:05.3]} 31. dxc4 {[%clk 0:01:14.4]} 31... bxc4 {[%clk
0:02:06.2]} 32. Rd2+ {[%clk 0:01:14.8]} 32... Rd6 {[%clk 0:02:05.3]} 33. Re2
{[%clk 0:01:14.3]} 33... Ke6 {[%clk 0:02:05.4]} 34. Re1 {[%clk 0:01:05]} 34...
Rxa6 {[%clk 0:01:49.2]} 35. Rd1 {[%clk 0:01:05.2]} 35... Rb6 {[%clk 0:01:46.6]}
36. Rd8 {[%clk 0:00:52.4]} 36... Rxb2 {[%clk 0:01:45.7]} 37. Rc8 {[%clk
0:00:52.5]} 37... Rb6 {[%clk 0:01:18.3]} 38. Rxc4 {[%clk 0:00:51.2]} 38... a5
{[%clk 0:01:18.6]} 39. Ra4 {[%clk 0:00:45.5]} 39... Ra6 {[%clk 0:01:17.8]} 40.
Kg3 {[%clk 0:00:41.4]} 40... Kd5 {[%clk 0:01:17.3]} 41. Kg2 {[%clk 0:00:31.1]}
41... Kc5 {[%clk 0:01:13.2]} 42. c4 {[%clk 0:00:31.4]} 42... Ra8 {[%clk
0:01:11.6]} 43. Kf1 {[%clk 0:00:30.9]} 43... Kb6 {[%clk 0:00:59.5]} 44. Ke2
{[%clk 0:00:30.5]} 44... Rd8 {[%clk 0:00:57.3]} 45. Ra1 {[%clk 0:00:26.6]} 45...
Ra8 {[%clk 0:00:54.2]} 46. Kd3 {[%clk 0:00:24.2]} 46... a4 {[%clk 0:00:52.3]}
47. Kc3 {[%clk 0:00:24.4]} 47... a3 {[%clk 0:00:48.9]} 48. Kb3 {[%clk
0:00:24.7]} 48... Kc5 {[%clk 0:00:47.6]} 49. Ra2 {[%clk 0:00:23.5]} 49... Ra7
{[%clk 0:00:46.8]} 50. Kc3 {[%clk 0:00:21.9]} 50... Ra4 {[%clk 0:00:46.5]} 51.
Kb3 {[%clk 0:00:22.1]} 51... Ra8 {[%clk 0:00:39.5]} 52. Kc3 {[%clk 0:00:21.1]}
52... g6 {[%clk 0:00:39.1]} 53. Kb3 {[%clk 0:00:20.7]} 53... g4 {[%clk
0:00:27.1]} 54. fxg4 {[%clk 0:00:18.6]} 54... fxg4 {[%clk 0:00:28]} 55. Kc3
{[%clk 0:00:18.7]} 55... Rf8 {[%clk 0:00:28.4]} 56. Kb3 {[%clk 0:00:17.2]} 56...
Rf3+ {[%clk 0:00:28]} 57. Ka4 {[%clk 0:00:16.5]} 57... Kxc4 {[%clk 0:00:28.4]}
58. Rc2+ {[%clk 0:00:16.8]} 58... Kd4 {[%clk 0:00:27.6]} 59. Rd2+ {[%clk
0:00:16.8]} 59... Ke4 {[%clk 0:00:27.7]} 60. Re2+ {[%clk 0:00:17.1]} 60... Kf4
{[%clk 0:00:27.9]} 61. Ra2 {[%clk 0:00:16.9]} 61... e4 {[%clk 0:00:27.7]} 62.
Kb4 {[%clk 0:00:16.7]} 62... g5 {[%clk 0:00:28]} 63. Kc4 {[%clk 0:00:16.7]}
63... Rd3 {[%clk 0:00:27.5]} 64. Re2 {[%clk 0:00:15.5]} 64... Kf3 {[%clk
0:00:27.2]} 65. Ra2 {[%clk 0:00:15.4]} 65... g3 {[%clk 0:00:26.9]} 66. fxg3
{[%clk 0:00:15.3]} 66... g4 {[%clk 0:00:27.5]} 67. Rc2 {[%clk 0:00:14.1]} 67...
Kxg3 {[%clk 0:00:23.2]} 68. Re2 {[%clk 0:00:14.4]} 68... Kf3 {[%clk 0:00:23.5]}
69. Ra2 {[%clk 0:00:14.4]} 69... g3 {[%clk 0:00:23.8]} 0-1

[Event "*** Titled Tuesday Blitz"]
[Site "Chess.com"]
[Date "2020.10.20"]
[Round "2"]
[White "eljanov"]
[Black "AleksibFan"]
[Result "1-0"]
[WhiteElo "2882"]
[BlackElo "2571"]
[TimeControl "180+1"]
[EndTime "10:19:06 PDT"]
[Termination "eljanov won on time"]

1. Nf3 {[%clk 0:03:00.4]} 1... d5 {[%clk 0:02:59.7]} 2. g3 {[%clk 0:02:59.6]}
2... Nf6 {[%clk 0:02:59.6]} 3. Bg2 {[%clk 0:02:59.7]} 3... g6 {[%clk 0:02:59.9]}
4. O-O {[%clk 0:02:59.4]} 4... Bg7 {[%clk 0:03:00.3]} 5. d4 {[%clk 0:02:59.9]}
5... O-O {[%clk 0:03:00]} 6. c4 {[%clk 0:03:00.5]} 6... c6 {[%clk 0:02:58.7]} 7.
Qb3 {[%clk 0:03:00.4]} 7... Qb6 {[%clk 0:02:52.6]} 8. Nc3 {[%clk 0:02:59.7]}
8... dxc4 {[%clk 0:02:40.1]} 9. Qxc4 {[%clk 0:02:59.2]} 9... Bf5 {[%clk
0:02:37.5]} 10. Re1 {[%clk 0:02:53.4]} 10... Ne4 {[%clk 0:02:28.7]} 11. Nh4
{[%clk 0:02:42.8]} 11... Bxd4 {[%clk 0:01:48.4]} 12. Nxe4 {[%clk 0:01:22.4]}
12... Bxe4 {[%clk 0:01:47.3]} 13. Bxe4 {[%clk 0:01:14.3]} 13... Bxf2+ {[%clk
0:01:47]} 14. Kf1 {[%clk 0:01:14.7]} 14... Bxe1 {[%clk 0:01:46.6]} 15. Kxe1
{[%clk 0:01:15.2]} 15... Qg1+ {[%clk 0:01:30.6]} 16. Kd2 {[%clk 0:01:15.2]}
16... Nd7 {[%clk 0:01:12]} 17. Kc2 {[%clk 0:01:11]} 17... Nf6 {[%clk 0:00:42.5]}
18. Nf3 {[%clk 0:01:05]} 18... Qh1 {[%clk 0:00:28.2]} 19. b3 {[%clk 0:01:04]}
19... b5 {[%clk 0:00:23.2]} 20. Qd3 {[%clk 0:01:02.5]} 20... Rfd8 {[%clk
0:00:17.3]} 21. Bb2 {[%clk 0:00:58.4]} 21... Qg2 {[%clk 0:00:11.3]} 22. Ng5
{[%clk 0:00:42.7]} 22... Qxh2 {[%clk 0:00:08.3]} 23. Qf3 {[%clk 0:00:42.9]}
23... Qh6 {[%clk 0:00:04.9]} 24. Bxf6 {[%clk 0:00:36.8]} 24... exf6 {[%clk
0:00:03.9]} 25. Qxf6 {[%clk 0:00:36.9]} 25... Rd7 {[%clk 0:00:03.7]} 26. Rh1
{[%clk 0:00:34.9]} 26... Qg7 {[%clk 0:00:03.2]} 27. Qxg7+ {[%clk 0:00:34.5]}
27... Kxg7 {[%clk 0:00:04.1]} 28. Rxh7+ {[%clk 0:00:33.9]} 28... Kf6 {[%clk
0:00:04.2]} 29. Nf3 {[%clk 0:00:34.1]} 29... Re8 {[%clk 0:00:04.7]} 30. Bd3
{[%clk 0:00:33.1]} 30... a6 {[%clk 0:00:04.8]} 31. b4 {[%clk 0:00:29.7]} 31...
c5 {[%clk 0:00:04.4]} 32. bxc5 {[%clk 0:00:28.9]} 32... Rc7 {[%clk 0:00:04.6]}
33. Rh4 {[%clk 0:00:22.7]} 33... Rxc5+ {[%clk 0:00:05.5]} 34. Kd2 {[%clk
0:00:22.9]} 34... Rd5 {[%clk 0:00:04.4]} 35. Rf4+ {[%clk 0:00:21.9]} 35... Kg7
{[%clk 0:00:04.4]} 36. g4 {[%clk 0:00:22.2]} 36... Red8 {[%clk 0:00:04.5]} 37.
Re4 {[%clk 0:00:21.4]} 37... a5 {[%clk 0:00:04.7]} 38. Re7 {[%clk 0:00:20.9]}
38... R8d7 {[%clk 0:00:04.6]} 39. Re8 {[%clk 0:00:21]} 39... Rd8 {[%clk
0:00:04.2]} 40. Re4 {[%clk 0:00:20.7]} 40... b4 {[%clk 0:00:03.9]} 41. Kc2
{[%clk 0:00:20.3]} 41... Rc5+ {[%clk 0:00:03.9]} 42. Kb3 {[%clk 0:00:20.7]}
42... Rdc8 {[%clk 0:00:04.8]} 43. Ka4 {[%clk 0:00:20.1]} 43... Rc3 {[%clk
0:00:04.3]} 44. Kxa5 {[%clk 0:00:19.2]} 44... b3 {[%clk 0:00:04.5]} 45. axb3
{[%clk 0:00:16.8]} 45... Rxb3 {[%clk 0:00:05.4]} 46. Ba6 {[%clk 0:00:08.6]}
46... Ra8 {[%clk 0:00:05]} 47. Ra4 {[%clk 0:00:06]} 47... Re3 {[%clk 0:00:04.9]}
48. Nd4 {[%clk 0:00:05.1]} 48... Re4 {[%clk 0:00:03.5]} 49. Kb6 {[%clk
0:00:03.6]} 49... Kf6 {[%clk 0:00:02.9]} 50. g5+ {[%clk 0:00:02.6]} 50... Ke7
{[%clk 0:00:02.6]} 51. Nc6+ {[%clk 0:00:02.4]} 1-0